Cogmind - Beta 14 @@@ ROGUE MODE // 2024.10.12 @ 02:17:42 Player: Fire Result: Destroyed by G-34 Mercenary with Small Laser Performance ------------- Evolutions (0) 0 Regions Visited (1) 200 Robots Destroyed (8) 40 Value Destroyed (195) 195 Prototype IDs (0) 0 Alien Tech Used (0) 0 Bonus (0) 0 TOTAL SCORE: 435 Bonus ------- None Cogmind --------- Core Integrity 0/250 Matter 267/300 Energy 250/250 System Corruption 0% Temperature Cool (9) Movement Hovering (120) Ox1 Location -10/Materials Parts ------- > --- POWER (1) -------- Ion Engine > --- PROPULSION (2) --- Hover Unit > --- UTILITY (2) ------ Visual Processing Unit Targeting Computer > --- WEAPON (2) ------- Small Laser Assault Rifle > --- INVENTORY (5) ---- Flight Unit Heat Sink Peak State ------------ > --- POWER ------------ Ion Engine > --- PROPULSION ------- Hover Unit Flight Unit > --- UTILITY ---------- Heat Sink Visual Processing Unit > --- WEAPON ----------- Small Laser Light Assault Rifle > --- INVENTORY -------- (None) [Rating: 8] Favorites ----------- Power Ion Engine Engine Ion Engine Propulsion Wheel Wheel Wheel Hover Unit Hover Unit Flight Unit Flight Unit Utility Visual Processing Unit Device Heat Sink Processor Visual Processing Unit Weapon Medium Laser Energy Gun Medium Laser Ballistic Gun Light Assault Rifle Build | -11 -10 ------- Run | Yrd Mat Slots Evolved . | . . Power . | . . Propulsion . | . . Utility . | . . Weapon . | . . Parts Attached 18 | 5 13 Power 4 | 1 3 Engine 4 | 1 3 Core . | . . Reactor . | . . Propulsion 5 | 2 3 Treads . | . . Leg . | . . Wheel 2 | 2 . Hover 1 | . 1 Flight 2 | . 2 Utility 3 | . 3 Device 1 | . 1 Storage . | . . Processor 2 | . 2 Hackware . | . . Protection . | . . Artifact . | . . Weapon 6 | 2 4 Energy Gun 3 | 2 1 Energy Cannon . | . . Ballistic Gun 3 | . 3 Ballistic Cannon . | . . Launcher . | . . Special Weapon . | . . Impact Weapon . | . . Slashing Weapon . | . . Piercing Weapon . | . . Special Melee Weapon . | . . Unidentified Prototypes . | . . Parts Lost 7 | . 7 Power 1 | . 1 Propulsion 3 | . 3 Utility . | . . Weapon 3 | . 3 Highest Loss Streak 5 | . 5 To Critical Strikes . | . . Average Slot Usage (%) 73 | . 73 Engine 11 | . 11 Wheel 8 | . 8 Hover 6 | . 6 Flight 4 | . 4 Device 4 | . 4 Processor 8 | . 8 Energy Gun 16 | . 16 Ballistic Gun 10 | . 10 Peak Build Rating 8 | 5 8 Average Rating 5 | 3 5 On Entrance 2 | . 5 Naked Turns . | . . Heaviest Build 9 | 7 9 Greatest Support 20 | 20 20 Greatest Overweight (x) 2 | . 2 Average Overweight (x) . | . . Largest Inventory Capacity 5 | 5 5 Average Capacity 5 | 5 5 Most Carried 3 | 2 3 Average Carried . | . . Final Capacity 5 | 5 5 Final Carried 2 | . 2 Class Distribution -------------------- 81% | Mutant 18% | Scavenger-Mutant Dominant Class ---------------- Mutant | -10/Materials Resources | -11 -10 ----------- Run | Yrd Mat Matter Collected 381 | 250 131 Remotely . | . . Salvage Created 214 | 32 182 Parts 17 | 2 15 Haulers Intercepted . | . . Recyclers Shooed . | . . Parts Field Recycled . | . . Retrieved Matter . | . . Parts Self-Destructed . | . . Prevented . | . . Kills | -11 -10 ------- Run | Yrd Mat Combat Hostiles Destroyed 7 | 1 6 Guns 7 | 1 6 Classes Destroyed 3 | 1 2 Watcher 1 | . 1 Swarmer 3 | . 3 Grunt 4 | 1 3 Best Kill Streak 4 | 1 4 Combat Bots Only 2 | 1 2 Max Kills in Single Turn 1 | 1 1 Gunslinging . | . . Exploded . | . . Melee . | . . Uniques/NPCs Destroyed . | . . Combat | -11 -10 -------- Run | Yrd Mat Hostile Shots Fired 113 | 2 111 Missed 38 | 1 37 Damage Taken 722 | 10 712 Core 255 | . 255 Absorbed by Shields . | . . Core Remaining (%) 100 | 100 . Volleys Fired 45 | 2 43 Largest 2 | 2 2 Hottest 100 | 100 100 Shots Fired 83 | 4 79 Gun 83 | 4 79 Cannon . | . . Launcher . | . . Special . | . . Kinetic 36 | . 36 Thermal 47 | 4 43 Explosive . | . . Electromagnetic . | . . Robot Hit Streak 6 | 4 6 Robot Miss Streak 6 | . 6 Penetration Max . | . . Secondary Targets 1 | . 1 Max Gunslinging Chain 1 | . 1 Shots Hit Robots 39 | 4 35 Core Hits 17 | 2 15 Critical Kills . | . . Critical Parts Destroyed . | . . Critical Strikes 1 | . 1 Burn 1 | . 1 Melee Attacks . | . . Impact . | . . Slashing . | . . Piercing . | . . Sneak Attacks . | . . Combat Hostiles . | . . Follow-up Attacks . | . . Damage Inflicted 411 | 51 360 Guns 411 | 51 360 Cannons . | . . Explosions . | . . Melee . | . . Ramming . | . . Kinetic 198 | . 198 Thermal 213 | 51 162 Explosive . | . . Electromagnetic . | . . Impact . | . . Slashing . | . . Piercing . | . . Highest Corruption . | . . Average Corruption . | . . Corruption Purged . | . . Corruption Blocked . | . . Overload Shots . | . . Overflow Damage . | . . Projectiles . | . . Explosions . | . . Melee . | . . Knockbacks . | . . Impact . | . . Kinetic . | . . Secondary . | . . Self-Inflicted Damage . | . . Shots . | . . Rammed 1 | . 1 Targets Rammed 1 | . 1 Kicked . | . . Crushed . | . . Highest Temperature 279 | 84 279 Average Temperature 100 | 43 105 Received Heat Transfer 186 | 6 180 Effects 4 | . 4 Energy Bleed 2 | . 2 Interference 2 | . 2 Siege Activations . | . . Robots Corrupted . | . . Combat Hostiles . | . . Parts Fried . | . . Impact Corruptions . | . . Robots Melted . | . . Combat Hostiles . | . . Parts Melted 1 | 1 . Heat Transferred 668 | 148 520 Parts Sabotaged . | . . Parts Stolen . | . . Parts Stripped . | . . Power Chain Reactions . | . . Alert | -11 -10 ------- Run | Yrd Mat Peak Influence 175 | 20 175 Initial 13 | . 13 Average 71 | 3 83 Maximum Alert Level . | . . Low Security (%) 100 | 100 100 Level 1 . | . . Level 2 . | . . Level 3 . | . . Level 4 . | . . Level 5 . | . . High Security . | . . Max Security . | . . Squads Dispatched 3 | . 3 Investigation 1 | . 1 Extermination . | . . Reinforcement 2 | . 2 Assault . | . . Garrison . | . . Intercept . | . . Searches Triggered . | . . Construction Impeded . | . . Haulers Reinforced . | . . Active Scanning Responses . | . . Cargo Convoy Interrupts . | . . Stealth | -11 -10 --------- Run | Yrd Mat Distress Signals 4 | . 4 Communications Jammed . | . . Distress Signals . | . . Times Spotted 17 | 1 16 Peak Tracking Total 7 | 1 7 Tactical Retreats 1 | . 1 Traps | -11 -10 ------- Run | Yrd Mat Traps Triggered . | . . Indirectly . | . . Trap Hack Attempts . | . . Triggered . | . . Disarmed . | . . Reprogrammed . | . . Reused . | . . Traps Extracted . | . . Installed . | . . Triggered . | . . Machines | -11 -10 ---------- Run | Yrd Mat Machines Disabled . | . . Max in Single Turn . | . . Machines Repaired . | . . Machines Dismantled . | . . Machines Sabotaged . | . . Overloaded Fab Kills . | . . Hacking | -11 -10 --------- Run | Yrd Mat Machines Accessed 2 | . 2 Terminals 2 | . 2 Fabricators . | . . Repair Stations . | . . Recycling Units . | . . Scanalyzers . | . . Garrison Access . | . . Total Hacks 10 | . 10 Successful 3 | . 3 Failed 7 | . 7 Catastrophic . | . . Database Lockouts . | . . Manual . | . . Terminals 10 | . 10 Fabricators . | . . Repair Stations . | . . Recycling Units . | . . Scanalyzers . | . . Garrison Access . | . . Terminal Hacks 3 | . 3 Record 1 | . 1 Emergency Access Points 1 | . 1 Zone Layout 1 | . 1 Fabricator Hacks . | . . Repair Station Hacks . | . . Recycling Unit Hacks . | . . Scanalyzer . | . . Garrison Access Hacks . | . . Unauthorized Hacks . | . . Terminals . | . . Fabricators . | . . Repair Stations . | . . Recycling Units . | . . Scanalyzers . | . . Garrison Access . | . . Data Cores Recovered . | . . Used . | . . Hacking Detections 2 | . 2 Full Trace Events 2 | . 2 Feedback Events . | . . Feedback Blocked . | . . Robot Schematics Acquired . | . . Robots Built . | . . Authchips . | . . Time . | . . Total Robot Build Rating . | . . Part Schematics Acquired . | . . Parts Built . | . . Authchips . | . . Time . | . . Total Part Build Rating . | . . Parts Repaired . | . . Time . | . . Parts Recycled . | . . Recycled Matter . | . . Retrieved Matter . | . . Retrieved Components . | . . Parts Scanalyzed . | . . Part Schematics Acquired . | . . Parts Damaged . | . . Bothacking | -11 -10 ------------ Run | Yrd Mat Used RIF Installer . | . . Robots Hacked . | . . Non-combat . | . . Combat . | . . Robot Hacks Applied . | . . Relay Couplers Released . | . . Fabnet Peak Effective % . | . . Robots Rewired . | . . Allies Hacked . | . . Hacks Repelled . | . . Allies | -11 -10 -------- Run | Yrd Mat Total Allies . | . . Largest Group . | . . Highest-Rated Group . | . . Highest-Rated Ally . | . . Total Orders . | . . Ally Attacks . | . . Total Damage . | . . Kills . | . . Allies Corrupted . | . . Allies Melted . | . . Intel | -11 -10 ------- Run | Yrd Mat Robot Analysis Total . | . . Derelict Logs Recovered . | . . Drone Launches . | . . Drone Recoveries . | . . Exploration | -11 -10 ------------- Run | Yrd Mat Turns Passed 459 | 70 389 Spaces Moved 303 | 69 234 Core 30 | 19 11 Treads . | . . Legs . | . . Wheels 145 | 50 95 Hover 124 | . 124 Flight 4 | . 4 Fastest Speed 40 | 50 40 Average Speed 95 | 71 102 Slowest Speed 150 | 80 150 Overloaded Moves . | . . Propulsion Burnouts . | . . Robots Hopped . | . . Cave-ins Triggered . | . . Exploration Rate (%) 25 | 7 44 Regions Visited 1 Branch Regions . Pre-discovered Areas . | . . Known Exits Taken . | . . Unknown Exits Taken 1 | 1 . Scrap Searched . | . . Spaces Dug . | . . Terrain Destroyed . | . . Melee . | . . Projectile . | . . AOE . | . . Terrain Rammed . | . . Walls Destroyed . | . . Machines Disabled . | . . Actions | -11 -10 --------- Run | Yrd Mat Total 397 | 85 312 Wait 8 | 5 3 Move 302 | 68 234 Hop . | . . Pick Up 18 | 5 13 Fast Attach . | . . Attach 15 | 5 10 Detach 2 | . 2 Swap 3 | . 3 Drop 3 | . 3 Fire 45 | 2 43 Melee . | . . Ram 1 | . 1 Kick . | . . Crush . | . . Escape Stasis . | . . Rewire . | . . Trap . | . . Miscellaneous . | . . Route ------- -11/Scrapyard -10/Materials (discovered 1 exit: [*Min]) History --------- Turn | Location | Event 2 | -11/Scrapyard | Met Revision 17 51 | -11/Scrapyard | Discovered new exit (range 8) 71 | -11/Scrapyard | Entered Materials 134 | -10/Materials | Discovered new exit (range 20) 211 | -10/Materials | Core integrity fell below 50% 233 | -10/Materials | Lost 5 parts (1p2n2w) 258 | -10/Materials | Core integrity fell below 20% 460 | -10/Materials | Destroyed by G-34 Mercenary with Small Laser Last Messages --------------- Acquired 40 matter. Acquired Flight Unit. R-06 Scavenger collects Aluminum Leg. O-16 Technician: "IFF HANDSHAKE FAILED. SECURING TERMINAL." Connecting with Terminal... Acquired Assault Rifle. ALERT: Hostiles spotted, dispatching reinforcements to Terminal M008. S-10 Pest destroyed. K-01 Serf collects debris. Acquired Lgt. Ion Engine. Dropped Ion Engine. Dropped Lgt. Assault Rifle. Acquired 14 matter. Acquired Ion Engine. Dropped Lgt. Ion Engine. Acquired Targeting Computer. Acquired 18 matter. Terminal unresponsive. Map ----- +----------------------------------------------------+ | ??????????????????????????????# ## """ + | | ??????????????????????????????# ## """ # | | ????????????????#######??????## ## # | | ????????????????# ! ######## # """ + | | ????????????????# # T" # """ ## | | ????????????????# # " # """ ## | | ????????????????# """ # # ## | | ??????########### """ # #### ######## | | ??????# ## """ # ######+######???# | | ??????# """## # # #???# | | ??????# """##+#+### # #???# | | ??????# """# # #???# | | ??????# + # #??## | | ??????# """# [ # #### | | ??????# """####[####### + + | | ??????#* """#??# #?????# #### | | ??????# #??#=#?????#############??# | | ??????##########??#=#????????????????????# | | ??????????????????# ###??????????????????# | | ??????????????????#*= #??????????????????# | | ??????????????????# #????????????####### | | ????????########### ##???????????""""""# | | ????????# # T#??????????? " "## | | ????????# """ # #########+##" "## | | ????????# """"" # g ^ | | ????????# """"" @ g < | | ????????# """"" # k | | ????????# """ # #########+## ??## | | ????????# # #???????????????#???? | | ????????# # #???????????????????? | | ????????########### ???????????????????? | | ??????????????????# ##??????????????????? | | ??????????????????# #???????????????????? | | ??????????????????# #???????????????????? | | ??????????????????+ #???????????????????? | | ??????????????????# #???????????????????? | | ??????????????????# #???????????????????? | | ??????????????????# #???????????????????? | | ??????????????????# #???????????????????? | | ??????????????????# #???????????????????? | | ??????????????????# #???????????????????? | | ??????????????????? ????????????????????? | | ??????????????????? ????????????????????? | | ??????????????????????????????????????????? | | ??????????????????????????????????????????? | | ??????????????????????????????????????????? | | ??????????????????????????????????????????? | | ??????????????????????????????????????????? | | ??????????????????????????????????????????? | | ??????????????????????????????????????????? | +----------------------------------------------------+ Best States ------------- Heat Dissipation 35 Energy Generation 10 Energy Capacity 250 Matter Stores 300 Matter Capacity 300 Sight Range 18 Terrain Scan Density 10 Evasion (%) 61 Targeting Accuracy 5 Item Schematics ----------------- None Robot Schematics ------------------ None Fabricated ------------ Nothing Alien Tech Used ----------------- None Achievements -------------- None Challenges ------------ None Game ------ Seed VariableWardroneThrower Manual? 0 Play Time 00:15:25 Cumulative 0.6 hours Start 2024.10.12 @ 02:01:22 End 2024.10.12 @ 02:17:42 Sessions 1 Manual Loads 0 Difficulty Rogue Special Mode None Game No. 2 Rogue 2 Adventurer 0 Explorer 0 Win Type - Total 0 Types 0/0/0/0/0/0/0/0/0 Lore% 0 Gallery% 2 Achievement% 1 Wizard Run 0 Options --------- Layout 1 ASCII 0 Keyboard 0 Movement Mouse Keybinds 0 Fullscreen 1 Font 24/Smallcaps Map View 50x35 Zoom Use 0% Tactical HUD 0 Map Filters NONE Filters NONE Steam 1 RUN: 50896ef7-bb0c-4c06-a891-7036c1836acf